fUST/lending_fUST_20240608
["ID","MTS","AMOUNT","RATE_DAILY","PERIOD"]
[328775131,1717783842701,-1074.5633141,0.00016341,2]
[328775137,1717783842712,-945.46842875,0.00016438,2]
[328775140,1717783842723,-843.45758366,0.00021817,3]
[328775144,1717783842735,-26512.18953827,0.00021817,3]
[328775147,1717783842747,-14520.44095699,0.00021817,3]
[328775169,1717783843005,-8170.990182,0.00021817,3]
[328775171,1717783843017,-2317.06591012,0.00021817,3]
[328775173,1717783843029,-2000.0,0.00021817,2]
[328775175,1717783843039,-177.9734871,0.00021817,2]
[328775177,1717783843053,-205.1978842,0.00021843,2]
[328775178,1717783843062,-204.8073673,0.00021843,2]
[328775180,1717783843073,-205.1978842,0.00021843,2]
[328775182,1717783843083,-153.0,0.00021844,2]
[328775184,1717783843093,-153.0,0.00021844,2]
[328775186,1717783843102,-153.0,0.00021844,2]
[328775187,1717783843111,-153.0,0.00021844,2]
[328775189,1717783843122,-4236.94913646,0.00021855,2]
[328775191,1717783843131,-150.37765136,0.00021872,2]
[328775193,1717783843141,-160.0,0.000219,2]
[328775195,1717783843150,-270.0,0.000219,2]
[328775196,1717783843160,-192.10847365,0.00021915,2]
[328775198,1717783843169,-606.170302,0.00021915,2]
[328775200,1717783843179,-154.9690062,0.00021915,2]
[328775202,1717783843188,-155.20300756,0.00021915,2]
[328775204,1717783843199,-13654.96596348,0.00021915,2]
[328775206,1717783843208,-1689.50579785,0.00021915,2]
[328775208,1717783843218,-200.30096632,0.00021915,2]
[328775210,1717783843227,-181.82898436,0.00021915,2]
[328775212,1717783843236,-190.37021129,0.00021915,2]
[328775213,1717783843246,-1009.40059611,0.00021915,2]
[328775215,1717783843256,-251.81611332,0.00021915,2]
[328775217,1717783843265,-2096.08137509,0.00021915,2]
[328775219,1717783843275,-275.3142072,0.00021915,2]
[328775221,1717783843284,-162.43681755,0.00021915,2]
[328775223,1717783843294,-272.3727093,0.00021915,2]
[328775224,1717783843307,-2066.22102806,0.00021915,2]
[328775226,1717783843317,-1077.95127132,0.00021916,2]
[328775229,1717783843333,-496.47448606,0.00021916,2]
[328775231,1717783843345,-744.0,0.00021916,2]
[328775233,1717783843357,-11297.97993943,0.00021916,2]
[328775235,1717783843367,-2584.12968071,0.00021917,7]
[328775237,1717783843377,-500.0,0.00021917,3]
[328775238,1717783843387,-500.0,0.00021917,3]
[328775240,1717783843397,-500.0,0.00021917,3]
[328775242,1717783843406,-500.0,0.00021917,3]
[328775244,1717783843416,-234.68044641,0.00021917,3]
[328775246,1717783843426,-500.0,0.00021917,3]
[328775248,1717783843435,-500.0,0.00021917,3]
[328775250,1717783843444,-644.2018588,0.00021917,3]
[328775252,1717783843454,-500.0,0.00021917,3]
[328775254,1717783843463,-500.0,0.00021917,3]
[328775255,1717783843472,-500.0,0.00021917,3]
[328775257,1717783843482,-257.55586363,0.00021917,3]
[328775259,1717783843492,-500.0,0.00021917,3]
[328775261,1717783843501,-351.84133973,0.00021917,3]
[328775263,1717783843512,-500.0,0.00021917,3]
[328775265,1717783843522,-207.4209969,0.00021917,3]
[328775266,1717783843531,-500.0,0.00021917,3]
[328775268,1717783843540,-500.0,0.00021917,3]
[328775270,1717783843553,-541.19849864,0.00021917,3]
[328775272,1717783843563,-397.45093608,0.00021917,3]
[328775274,1717783843573,-500.0,0.00021917,3]
[328775276,1717783843583,-500.0,0.00021917,3]
[328775277,1717783843592,-500.0,0.00021917,3]
[328775279,1717783843602,-504.86013238,0.00021917,3]
[328775281,1717783843611,-500.0,0.00021917,3]
[328775283,1717783843621,-500.0,0.00021917,3]
[328775296,1717783843746,-500.0,0.00021917,3]
[328775298,1717783843756,-580.98315633,0.00021917,3]
[328775300,1717783843765,-2244.8,0.00021917,3]
[328775302,1717783843775,-500.0,0.00021917,3]
[328775304,1717783843784,-309.48491801,0.00021917,3]
[328775305,1717783843794,-500.0,0.00021917,3]
[328775307,1717783843807,-500.0,0.00021917,3]
[328775309,1717783843817,-500.0,0.00021917,3]
[328775311,1717783843826,-500.0,0.00021917,3]
[328775313,1717783843836,-518.88818734,0.00021917,3]
[328775315,1717783843846,-500.0,0.00021917,3]
[328775317,1717783843856,-500.0,0.00021917,3]
[328775319,1717783843866,-500.0,0.00021917,3]
[328775321,1717783843875,-315.05862401,0.00021917,3]
[328775322,1717783843885,-500.0,0.00021917,3]
[328775324,1717783843894,-500.0,0.00021917,3]
[328775326,1717783843904,-500.0,0.00021917,3]
[328775328,1717783843913,-500.0,0.00021917,3]
[328775330,1717783843922,-500.0,0.00021917,3]
[328775332,1717783843931,-500.0,0.00021917,3]
[328775334,1717783843941,-529.71,0.00021917,3]
[328775336,1717783843951,-351.46104683,0.00021917,3]
[328775337,1717783843960,-523.41813109,0.00021917,3]
[328775339,1717783843970,-1016.59,0.00021917,3]
[328775341,1717783843981,-500.0,0.00021917,3]
[328775343,1717783843998,-500.68683523,0.00021917,3]
[328775345,1717783844008,-500.0,0.00021917,3]
[328775347,1717783844018,-501.57820878,0.00021917,3]
[328775349,1717783844028,-507.03455054,0.00021917,3]
[328775351,1717783844038,-500.0,0.00021917,3]
[328775353,1717783844051,-500.0,0.00021917,3]
[328775355,1717783844061,-500.0,0.00021917,3]
[328775357,1717783844071,-500.0,0.00021917,3]
[328775358,1717783844081,-500.0,0.00021917,3]
[328775360,1717783844090,-500.0,0.00021917,3]
[328775362,1717783844100,-510.14139079,0.00021917,3]
[328775364,1717783844110,-2296.0,0.00021917,4]
[328775366,1717783844120,-500.0,0.00021917,3]
[328775368,1717783844130,-1017.31,0.00021917,3]
[328775370,1717783844139,-500.0,0.00021917,3]
[328775372,1717783844149,-500.0,0.00021917,3]
[328775374,1717783844158,-500.0,0.00021917,3]
[328775375,1717783844168,-500.0,0.00021917,3]
[328775377,1717783844177,-500.0,0.00021917,3]
[328775379,1717783844187,-631.91,0.00021917,3]
[328775381,1717783844196,-245.88988261,0.00021917,3]
[328775383,1717783844206,-500.0,0.00021917,3]
[328775385,1717783844215,-500.0,0.00021917,3]
[328775387,1717783844225,-500.0,0.00021917,3]
[328775389,1717783844235,-646.99333079,0.00021917,3]
[328775391,1717783844244,-500.0,0.00021917,3]
[328775393,1717783844254,-305.16458433,0.00021917,3]
[328775395,1717783844264,-500.69529997,0.00021917,3]
[328775397,1717783844273,-500.0,0.00021917,3]
[328775399,1717783844283,-500.0,0.00021917,3]
[328775401,1717783844292,-500.0,0.00021917,3]
[328775403,1717783844307,-395.93841601,0.00021917,3]
[328775405,1717783844316,-500.0,0.00021917,3]
[328775407,1717783844325,-500.0,0.00021917,3]
[328775409,1717783844335,-500.0,0.00021917,3]
[328775411,1717783844344,-500.0,0.00021917,3]
[328775413,1717783844354,-500.0,0.00021917,3]
[328775415,1717783844363,-500.0,0.00021917,3]
[328775417,1717783844372,-500.0,0.00021917,3]
[328775419,1717783844382,-502.81305426,0.00021917,3]
[328775421,1717783844391,-543.53,0.00021917,3]
[328775423,1717783844400,-500.0,0.00021917,3]
[328775425,1717783844409,-502.98882085,0.00021917,3]
[328775427,1717783844419,-500.0,0.00021917,3]
[328775429,1717783844428,-500.0,0.00021917,3]
[328775430,1717783844438,-500.0,0.00021917,3]
[328775431,1717783844447,-500.0,0.00021917,3]
[328775432,1717783844456,-500.0,0.00021917,3]
[328775433,1717783844466,-504.54700957,0.00021917,3]
[328775434,1717783844475,-500.0,0.00021917,3]
[328775435,1717783844484,-502.24047773,0.00021917,3]
[328775436,1717783844494,-544.8,0.00021917,3]
[328775437,1717783844504,-500.0,0.00021917,3]
[328775438,1717783844513,-500.0,0.00021917,3]
[328775439,1717783844523,-500.0,0.00021917,3]
[328775440,1717783844532,-500.0,0.00021917,3]
[328775441,1717783844541,-500.0,0.00021917,3]
[328775442,1717783844555,-500.0,0.00021917,3]
[328775443,1717783844565,-502.89719724,0.00021917,3]
[328775444,1717783844574,-500.0,0.00021917,3]
[328775445,1717783844584,-997.3,0.00021917,3]
[328775446,1717783844593,-500.0,0.00021917,3]
[328775447,1717783844602,-500.0,0.00021917,3]
[328775448,1717783844612,-2497.56,0.00021917,3]
[328775449,1717783844622,-944.28,0.00021917,3]
[328775450,1717783844631,-2863.22,0.00021917,3]
[328775452,1717783844641,-500.0,0.00021917,3]
[328775453,1717783844651,-500.0,0.00021917,3]
[328775455,1717783844660,-500.0,0.00021917,3]
[328775457,1717783844671,-500.0,0.00021917,3]
[328775459,1717783844681,-504.50096196,0.00021917,3]
[328775461,1717783844692,-500.0,0.00021917,3]
[328775463,1717783844702,-500.0,0.00021917,3]
[328775465,1717783844712,-541.39,0.00021917,3]
[328775467,1717783844723,-500.0,0.00021917,3]
[328775469,1717783844733,-500.0,0.00021917,3]
[328775471,1717783844742,-760.87,0.00021917,3]
[328775473,1717783844753,-1159.77,0.00021917,3]
[328775475,1717783844763,-500.0,0.00021917,3]
[328775477,1717783844772,-500.0,0.00021917,3]
[328775479,1717783844783,-521.63327352,0.00021917,3]
[328775481,1717783844793,-500.0,0.00021917,3]
[328775483,1717783844809,-500.0,0.00021917,3]
[328775485,1717783844820,-501.42221471,0.00021917,3]
[328775499,1717783844831,-500.0,0.00021917,3]
[328775512,1717783844842,-500.0,0.00021917,3]
[328775523,1717783844853,-544.12207473,0.00021917,3]
[328775534,1717783844863,-500.0,0.00021917,3]
[328775549,1717783844875,-500.0,0.00021917,3]
[328775564,1717783844885,-500.0,0.00021917,3]
[328775576,1717783844896,-200.48471714,0.00021917,3]
[328775593,1717783844907,-500.0,0.00021917,3]
[328775608,1717783844918,-500.0,0.00021917,3]
[328775627,1717783844934,-500.0,0.00021917,3]
[328775640,1717783844945,-500.0,0.00021917,3]
[328775652,1717783844956,-519.43748525,0.00021917,3]
[328775664,1717783844967,-500.0,0.00021917,3]
[328775678,1717783844978,-500.0,0.00021917,3]
[328775686,1717783844991,-500.0,0.00021917,3]
[328775699,1717783845002,-2067.71,0.00021917,3]
[328775711,1717783845012,-500.0,0.00021917,3]
[328775719,1717783845025,-500.0,0.00021917,3]
[328775728,1717783845039,-794.61,0.00021917,3]
[328775740,1717783845055,-500.0,0.00021917,3]
[328775748,1717783845066,-525.80215609,0.00021917,3]
[328775756,1717783845078,-428.49829647,0.00021917,3]
[328775764,1717783845088,-2762.35,0.00021917,3]
[328775772,1717783845099,-500.0,0.00021917,2]
[328775779,1717783845109,-502.59675767,0.00021917,3]
[328775786,1717783845119,-1734.56,0.00021917,3]
[328775791,1717783845129,-500.0,0.00021917,3]
[328775795,1717783845141,-500.0,0.00021917,3]
[328775800,1717783845151,-507.90606023,0.00021917,3]
[328775805,1717783845160,-1019.55,0.00021917,3]
[328775810,1717783845170,-500.0,0.00021917,3]
[328775815,1717783845180,-168.3476304,0.00021917,3]
[328775819,1717783845189,-1061.54,0.00021917,3]
[328775824,1717783845199,-501.97791594,0.00021917,3]
[328775829,1717783845208,-500.0,0.00021917,3]
[328775833,1717783845218,-500.0,0.00021917,3]
[328775838,1717783845227,-1346.7,0.00021917,3]
[328775842,1717783845237,-503.28858277,0.00021917,3]
[328775846,1717783845247,-500.0,0.00021917,3]
[328775852,1717783845256,-500.0,0.00021917,3]
[328775856,1717783845266,-500.0,0.00021917,3]
[328775860,1717783845276,-500.0,0.00021917,3]
[328775865,1717783845285,-500.0,0.00021917,3]
[328775870,1717783845298,-503.22336061,0.00021917,2]
[328775874,1717783845307,-500.0,0.00021917,3]
[328775878,1717783845316,-500.0,0.00021917,3]
[328775881,1717783845327,-532.46247509,0.00021917,3]
[328775885,1717783845336,-500.0,0.00021917,2]
[328775888,1717783845346,-500.0,0.00021917,3]
[328775891,1717783845355,-626.63,0.00021917,3]
[328775894,1717783845365,-500.0,0.00021917,3]
[328775898,1717783845375,-943.64,0.00021917,3]
[328775901,1717783845385,-500.0,0.00021917,3]
[328775904,1717783845395,-505.88076613,0.00021917,3]
[328775907,1717783845405,-500.0,0.00021917,3]
[328775910,1717783845415,-500.0,0.00021917,3]
[328775915,1717783845425,-500.0,0.00021917,3]
[328775918,1717783845434,-200.0,0.00021917,3]
[328775922,1717783845444,-500.0,0.00021917,3]
[328775926,1717783845454,-500.0,0.00021917,3]
[328775930,1717783845463,-2820.3,0.00021917,3]
[328775934,1717783845473,-500.0,0.00021917,3]
[328775938,1717783845483,-2677.99,0.00021917,3]
[328775942,1717783845492,-764.85,0.00021917,3]
[328775946,1717783845502,-500.0,0.00021917,3]
[328775950,1717783845511,-518.35640038,0.00021917,3]
[328775954,1717783845521,-1284.93,0.00021917,3]
[328775958,1717783845531,-500.0,0.00021917,3]
[328775962,1717783845541,-1486.87,0.00021917,3]
[328775965,1717783845555,-500.0,0.00021917,3]
[328775968,1717783845565,-366.82423376,0.00021917,3]
[328775971,1717783845575,-445.79165549,0.00021917,3]
[328775975,1717783845585,-500.0,0.00021917,3]
[328775978,1717783845594,-909.16,0.00021917,3]
[328775981,1717783845604,-506.13938526,0.00021917,3]
[328775984,1717783845614,-500.0,0.00021917,3]
[328775987,1717783845624,-500.0,0.00021917,3]
[328775990,1717783845634,-500.0,0.00021917,3]
[328775993,1717783845644,-502.39300777,0.00021917,3]
[328775996,1717783845654,-500.0,0.00021917,3]
[328775999,1717783845663,-500.0,0.00021917,3]
[328776002,1717783845673,-500.0,0.00021917,3]
[328776005,1717783845683,-517.78311959,0.00021917,3]
[328776008,1717783845694,-502.71720836,0.00021917,3]
[328776011,1717783845704,-500.0,0.00021917,3]
[328776014,1717783845714,-500.0,0.00021917,3]
[328776035,1717783845805,-500.0,0.00021917,3]
[328776038,1717783845826,-818.25,0.00021917,3]
[328776041,1717783845836,-500.0,0.00021917,3]
[328776044,1717783845846,-500.0,0.00021917,3]
[328776047,1717783845856,-500.0,0.00021917,3]
[328776050,1717783845867,-500.0,0.00021917,3]
[328776053,1717783845877,-500.0,0.00021917,2]
[328776056,1717783845886,-519.47279598,0.00021917,3]
[328776059,1717783845896,-500.0,0.00021917,3]
[328776062,1717783845906,-518.66,0.00021917,3]
[328776065,1717783845916,-1030.99,0.00021917,3]
[328776068,1717783845925,-518.76558569,0.00021917,3]
[328776071,1717783845935,-500.0,0.00021917,3]
[328776074,1717783845945,-502.43498286,0.00021917,3]
[328776077,1717783845956,-384.10580306,0.00021917,3]
[328776080,1717783845965,-500.0,0.00021917,3]
[328776083,1717783845975,-500.0,0.00021917,3]
[328776086,1717783845990,-504.51239282,0.00021917,3]
[328776088,1717783845999,-719.64,0.00021917,3]
[328776090,1717783846008,-526.83267157,0.00021917,3]
[328776092,1717783846019,-500.0,0.00021917,3]
[328776094,1717783846031,-586.92023192,0.00021917,3]
[328776096,1717783846041,-3343.68,0.00021917,3]
[328776098,1717783846054,-500.0,0.00021917,3]
[328776100,1717783846064,-1572.74,0.00021917,3]
[328776102,1717783846073,-500.0,0.00021917,3]
[328776104,1717783846084,-506.04076421,0.00021917,3]
[328776106,1717783846094,-500.0,0.00021917,3]
[328776107,1717783846104,-500.0,0.00021917,3]
[328776110,1717783846114,-2705.51,0.00021917,3]
[328776111,1717783846123,-502.89918318,0.00021917,3]
[328776113,1717783846133,-902.24,0.00021917,3]
[328776115,1717783846142,-500.0,0.00021917,3]
[328776117,1717783846152,-500.0,0.00021917,3]
[328776119,1717783846162,-500.0,0.00021917,3]
[328776121,1717783846171,-500.0,0.00021917,3]
[328776123,1717783846181,-500.0,0.00021917,2]
[328776125,1717783846190,-1372.67,0.00021917,3]
[328776127,1717783846199,-500.0,0.00021917,3]
[328776129,1717783846209,-500.0,0.00021917,3]
[328776131,1717783846218,-500.0,0.00021917,3]
[328776133,1717783846228,-506.18381644,0.00021917,3]
[328776135,1717783846237,-505.41905001,0.00021917,3]
[328776137,1717783846246,-752.09,0.00021917,3]
[328776139,1717783846256,-500.0,0.00021917,3]
[328776141,1717783846265,-503.82921661,0.00021917,3]
[328776143,1717783846275,-500.0,0.00021917,3]
[328776145,1717783846285,-506.72449764,0.00021917,3]
[328776147,1717783846294,-2114.8,0.00021917,3]
[328776148,1717783846309,-500.0,0.00021917,3]
[328776150,1717783846319,-872.17,0.00021917,3]
[328776152,1717783846328,-1331.31,0.00021917,3]
[328776154,1717783846337,-500.0,0.00021917,3]
[328776156,1717783846346,-500.0,0.00021917,3]
[328776158,1717783846356,-502.43136395,0.00021917,3]
[328776160,1717783846365,-500.0,0.00021917,3]
[328776162,1717783846375,-500.0,0.00021917,3]
[328776164,1717783846384,-508.11249346,0.00021917,3]
[328776166,1717783846395,-151.0,0.00021917,2]
[328776168,1717783846405,-863.43,0.00021917,3]
[328776170,1717783846416,-193.79105,0.00021917,2]
[328776172,1717783846426,-500.0,0.00021917,3]
[328776174,1717783846436,-505.24985065,0.00021917,3]
[328776176,1717783846446,-500.0,0.00021917,3]
[328776178,1717783846456,-500.0,0.00021917,3]
[328776180,1717783846467,-500.0,0.00021917,3]
[328776182,1717783846476,-500.0,0.00021917,3]
[328776184,1717783846486,-500.0,0.00021917,3]
[328776186,1717783846496,-500.0,0.00021917,3]
[328776188,1717783846506,-500.0,0.00021917,3]
[328776190,1717783846515,-500.0,0.00021917,3]
[328776193,1717783846526,-269.16252365,0.00021917,3]
[328776194,1717783846535,-500.0,0.00021917,3]
[328776196,1717783846545,-743.13,0.00021917,3]
[328776198,1717783846558,-500.0,0.00021917,3]
[328776201,1717783846567,-500.0,0.00021917,3]
[328776203,1717783846577,-500.0,0.00021917,3]
[328776205,1717783846586,-500.0,0.00021917,3]
[328776207,1717783846595,-200.92013662,0.00021917,3]
[328776209,1717783846605,-3486.81,0.00021917,3]
[328776211,1717783846615,-771.89,0.00021917,3]
[328776213,1717783846625,-500.0,0.00021917,3]
[328776215,1717783846634,-500.0,0.00021917,3]
[328776217,1717783846644,-626.26,0.00021917,3]
[328776219,1717783846653,-500.0,0.00021917,3]
[328776221,1717783846663,-175.23843947,0.00021917,3]
[328776223,1717783846672,-775.34,0.00021917,3]
[328776225,1717783846682,-500.0,0.00021917,3]
[328776227,1717783846692,-500.0,0.00021917,3]
[328776228,1717783846702,-500.0,0.00021917,3]
[328776230,1717783846711,-500.0,0.00021917,3]
[328776232,1717783846721,-500.0,0.00021917,3]
[328776234,1717783846730,-283.7169246,0.00021917,3]
[328776236,1717783846739,-500.0,0.00021917,3]
[328776238,1717783846749,-500.0,0.00021917,3]
[328776240,1717783846758,-500.0,0.00021917,3]
[328776242,1717783846768,-500.0,0.00021917,3]
[328776244,1717783846777,-500.0,0.00021917,3]
[328776246,1717783846786,-500.0,0.00021917,3]
[328776248,1717783846800,-6061.25,0.00021917,3]
[328776250,1717783846809,-500.0,0.00021917,3]
[328776252,1717783846818,-500.0,0.00021917,3]
[328776254,1717783846828,-1967.47,0.00021917,3]
[328776256,1717783846838,-209.10772103,0.00021917,3]
[328776258,1717783846847,-500.0,0.00021917,3]
[328776260,1717783846857,-1623.13,0.00021917,3]
[328776262,1717783846866,-500.0,0.00021917,3]
[328776264,1717783846876,-1144.15,0.00021917,3]
[328776266,1717783846885,-6129.67,0.00021917,3]
[328776268,1717783846894,-500.0,0.00021917,3]
[328776270,1717783846904,-500.0,0.00021917,3]
[328776272,1717783846914,-500.0,0.00021917,3]
[328776274,1717783846923,-500.0,0.00021917,3]
[328776276,1717783846933,-767.11,0.00021917,3]
[328776278,1717783846942,-500.0,0.00021917,3]
[328776280,1717783846951,-500.0,0.00021917,3]
[328776282,1717783846961,-2989.11,0.00021917,3]
[328776284,1717783846971,-4013.75,0.00021917,3]
[328776286,1717783846981,-500.0,0.00021917,3]
[328776288,1717783846993,-500.0,0.00021917,3]
[328776290,1717783847002,-500.0,0.00021917,3]
[328776292,1717783847011,-1641.09,0.00021917,3]
[328776294,1717783847023,-712.07,0.00021917,3]
[328776296,1717783847033,-1641.09,0.00021917,3]
[328776298,1717783847042,-1100.69,0.00021917,3]
[328776300,1717783847056,-1641.09,0.00021917,3]
[328776302,1717783847066,-1641.09,0.00021917,3]
[328776304,1717783847076,-1641.09,0.00021917,3]
[328776306,1717783847086,-1641.09,0.00021917,3]
[328776308,1717783847096,-1641.09,0.00021917,3]
[328776310,1717783847105,-1641.09,0.00021917,3]
[328776312,1717783847115,-1641.09,0.00021917,3]
[328776314,1717783847124,-500.0,0.00021917,3]
[328776316,1717783847134,-1641.09,0.00021917,3]
[328776318,1717783847144,-500.0,0.00021917,3]
[328776320,1717783847153,-1641.09,0.00021917,3]
[328776322,1717783847163,-1641.09,0.00021917,3]
[328776324,1717783847172,-1641.09,0.00021917,3]
[328776326,1717783847181,-1641.09,0.00021917,3]
[328776328,1717783847191,-1641.09,0.00021917,3]
[328776329,1717783847200,-1641.09,0.00021917,3]
[328776332,1717783847211,-1641.09,0.00021917,3]
[328776333,1717783847221,-1641.09,0.00021917,3]
[328776335,1717783847231,-500.0,0.00021917,3]
[328776337,1717783847240,-500.0,0.00021917,3]
[328776339,1717783847250,-1013.97,0.00021917,3]
[328776341,1717783847259,-827.93,0.00021917,3]
[328776343,1717783847268,-827.93,0.00021917,3]
[328776345,1717783847278,-500.0,0.00021917,3]
[328776350,1717783847287,-500.0,0.00021917,3]
[328776359,1717783847300,-827.93,0.00021917,3]
[328776368,1717783847310,-500.0,0.00021917,3]
[328776376,1717783847320,-827.93,0.00021917,3]
[328776384,1717783847330,-827.93,0.00021917,3]
[328776392,1717783847339,-827.93,0.00021917,3]
[328776401,1717783847350,-827.93,0.00021917,3]
[328776410,1717783847363,-500.0,0.00021917,3]
[328776418,1717783847373,-827.93,0.00021917,3]
[328776426,1717783847384,-827.93,0.00021917,3]
[328776434,1717783847393,-827.93,0.00021917,3]
[328776442,1717783847403,-827.93,0.00021917,3]
[328776448,1717783847413,-827.93,0.00021917,3]
[328776455,1717783847423,-827.93,0.00021917,3]
[328776462,1717783847432,-827.93,0.00021917,3]
[328776467,1717783847442,-500.0,0.00021917,3]
[328776472,1717783847451,-827.93,0.00021917,3]
[328776477,1717783847461,-503.83120065,0.00021917,3]
[328776481,1717783847474,-500.0,0.00021917,3]
[328776485,1717783847491,-5473.33,0.00021917,3]
[328776489,1717783847500,-951.56,0.00021917,3]
[328776494,1717783847511,-500.0,0.00021917,3]
[328776498,1717783847520,-500.0,0.00021917,3]
[328776501,1717783847530,-500.0,0.00021917,3]
[328776505,1717783847539,-630.95824231,0.00021917,3]
[328776509,1717783847551,-500.0,0.00021917,3]
[328776512,1717783847563,-500.0,0.00021917,3]
[328776516,1717783847573,-560.81449798,0.00021917,3]
[328776519,1717783847582,-1308.65,0.00021917,3]
[328776522,1717783847591,-502.65957187,0.00021917,3]
[328776525,1717783847601,-500.0,0.00021917,3]
[328776541,1717783847696,-500.0,0.00021917,3]
[328776544,1717783847706,-336.7593802,0.00021917,3]
[328776547,1717783847715,-3625.54,0.00021917,3]
[328776550,1717783847725,-501.35593018,0.00021917,3]
[328776553,1717783847734,-164.61889871,0.00021917,3]
[328776556,1717783847743,-374.251572,0.00021917,2]
[328776557,1717783847754,-374.251572,0.00021917,2]
[328776559,1717783847763,-374.251572,0.00021917,2]
[328776561,1717783847772,-500.0,0.00021917,3]
[328776563,1717783847782,-374.251572,0.00021917,2]
[328776566,1717783847791,-374.251572,0.00021917,2]
[328776567,1717783847804,-374.251572,0.00021917,2]
[328776569,1717783847813,-595.78,0.00021917,3]
[328776572,1717783847823,-500.0,0.00021917,3]
[328776573,1717783847833,-500.0,0.00021917,3]
[328776575,1717783847843,-500.0,0.00021917,3]
[328776577,1717783847852,-500.0,0.00021917,3]
[328776579,1717783847862,-500.0,0.00021917,3]
[328776582,1717783847872,-12603.07,0.00021917,3]
[328776584,1717783847882,-500.0,0.00021917,3]
[328776586,1717783847892,-500.0,0.00021917,3]
[328776588,1717783847901,-151.0,0.00021917,2]
[328776590,1717783847910,-151.0,0.00021917,2]
[328776592,1717783847920,-151.0,0.00021917,2]
[328776594,1717783847930,-506.76649597,0.00021917,3]
[328776595,1717783847939,-500.0,0.00021917,3]
[328776597,1717783847949,-500.0,0.00021917,3]
[328776599,1717783847958,-795.05,0.00021917,3]
[328776600,1717783847968,-598.22900202,0.00021917,3]
[328776601,1717783847979,-500.0,0.00021917,3]
[328776602,1717783847990,-507.62421664,0.00021917,3]
[328776603,1717783848000,-500.0,0.00021917,3]
[328776604,1717783848010,-500.0,0.00021917,3]
[328776605,1717783848022,-507.20198532,0.00021917,3]
[328776606,1717783848033,-500.0,0.00021917,3]
[328776607,1717783848043,-500.0,0.00021917,3]
[328776608,1717783848055,-11606.22,0.00021917,3]
[328776609,1717783848064,-431.6908566,0.00021917,3]
[328776610,1717783848075,-1307.11,0.00021917,3]
[328776611,1717783848085,-470.64774371,0.00021917,3]
[328776612,1717783848095,-500.0,0.00021917,3]
[328776613,1717783848104,-3175.02,0.00021917,3]
[328776614,1717783848114,-500.0,0.00021917,3]
[328776615,1717783848124,-534.39,0.00021917,3]
[328776617,1717783848134,-500.0,0.00021917,3]
[328776619,1717783848145,-501.18238831,0.00021917,3]
[328776621,1717783848155,-500.0,0.00021917,3]
[328776622,1717783848164,-508.39621833,0.00021917,3]
[328776624,1717783848174,-551.53493397,0.00021917,2]
[328776626,1717783848184,-500.0,0.00021917,3]
[328776627,1717783848193,-151.0,0.00021917,2]
[328776628,1717783848203,-151.0,0.00021917,2]
[328776629,1717783848213,-151.0,0.00021917,2]
[328776630,1717783848223,-3421.47,0.00021917,3]
[328776632,1717783848232,-1186.77,0.00021917,3]
[328776634,1717783848242,-803.92,0.00021917,3]
[328776636,1717783848251,-500.0,0.00021917,3]
[328776638,1717783848261,-151.0,0.00021917,2]